[Event "Titled Tuesday Blitz June 27 Late 2023"]
[White "Tomaszewski, Kacper"]
[Black "Cardozo Munar, Carlos Eduardo"]
[WhiteFideId "1127373"]
[BlackFideId "4409477"]
[WhiteElo "2463"]
[BlackElo "2334"]
[Result "1-0"]
[Round "9"]
[TimeControl "180+2"]
[Date "2023.06.27"]
[WhiteClock "0:00:18"]
[BlackClock "0:00:13"]
[Board "82"]

1. e4 {[%clk 0:02:57]}  e6 {[%clk 0:02:50]} 2. Nf3 {[%clk 0:02:55]}  d5 {[%clk 0:02:51]} 3. e5 {[%clk 0:02:55]}  c5 {[%clk 0:02:47]} 4. b4 {[%clk 0:02:55]}  cxb4 {[%clk 0:02:48]} 5. a3 {[%clk 0:02:55]}  d4 {[%clk 0:02:48]} 6. c3 {[%clk 0:02:51]}  bxc3 {[%clk 0:02:48]} 7. dxc3 {[%clk 0:02:47]}  dxc3 {[%clk 0:02:45]} 8. Qc2 {[%clk 0:02:47]}  Nc6 {[%clk 0:02:44]} 9. Nxc3 {[%clk 0:02:43]}  Bd7 {[%clk 0:02:43]} 10. Bd3 {[%clk 0:02:38]}  a6 {[%clk 0:02:42]} 11. O-O {[%clk 0:02:37]}  Nge7 {[%clk 0:02:42]} 12. Bg5 {[%clk 0:02:36]}  Qc7 {[%clk 0:02:41]} 13. Ne4 {[%clk 0:02:34]}  Ng6 {[%clk 0:02:40]} 14. Rfc1 {[%clk 0:02:07]}  Rc8 {[%clk 0:02:39]} 15. Nc5 {[%clk 0:01:53]}  Ncxe5 {[%clk 0:02:16]} 16. Nxd7 {[%clk 0:01:51]}  Qxc2 {[%clk 0:02:15]} 17. Bxc2 {[%clk 0:01:45]}  Nxd7 {[%clk 0:02:13]} 18. Ba4 {[%clk 0:01:40]}  Rxc1+ {[%clk 0:02:01]} 19. Rxc1 {[%clk 0:01:41]}  f6 {[%clk 0:02:02]} 20. Rc8+ {[%clk 0:01:19]}  Ke7 {[%clk 0:02:02]} 21. Bd2 {[%clk 0:01:15]}  b5 {[%clk 0:02:01]} 22. Bb3 {[%clk 0:01:12]}  Nge5 {[%clk 0:01:41]} 23. Nd4 {[%clk 0:01:05]}  Nb6 {[%clk 0:01:31]} 24. Rc7+ {[%clk 0:00:49]}  Kd6 {[%clk 0:01:24]} 25. Ra7 {[%clk 0:00:45]}  Nec4 {[%clk 0:01:19]} 26. Bb4+ {[%clk 0:00:37]}  Kd5 {[%clk 0:01:11]} 27. Nc2 {[%clk 0:00:35]}  g5 {[%clk 0:00:47]} 28. Rxa6 {[%clk 0:00:31]}  Bxb4 {[%clk 0:00:39]} 29. axb4 {[%clk 0:00:29]}  Kc6 {[%clk 0:00:31]} 30. Nd4+ {[%clk 0:00:26]}  Kb7 {[%clk 0:00:31]} 31. Ra2 {[%clk 0:00:24]}  Rd8 {[%clk 0:00:29]} 32. Nxe6 {[%clk 0:00:18]}  Rd6 {[%clk 0:00:22]} 33. Nc5+ {[%clk 0:00:19]}  Kc6 {[%clk 0:00:20]} 34. g3 {[%clk 0:00:19]}  Nd5 {[%clk 0:00:16]} 35. Ra6+ {[%clk 0:00:18]}  Ncb6 {[%clk 0:00:14]} 36. Ra7 {[%clk 0:00:13]}  Nxb4 {[%clk 0:00:13]} 37. Ne4 {[%clk 0:00:13]}  Rd3 {[%clk 0:00:11]} 38. Bf7 {[%clk 0:00:10]}  Rd1+ {[%clk 0:00:09]} 39. Kg2 {[%clk 0:00:10]}  N4d5 {[%clk 0:00:10]} 40. Be8+ {[%clk 0:00:10]}  Nd7 {[%clk 0:00:07]} 41. Rxd7 {[%clk 0:00:10]}  Kb6 {[%clk 0:00:06]} 42. Nxf6 {[%clk 0:00:09]}  Ne3+ {[%clk 0:00:06]} 43. fxe3 {[%clk 0:00:09]}  Rxd7 {[%clk 0:00:06]} 44. Nxd7+ {[%clk 0:00:10]}  Ka5 {[%clk 0:00:05]} 45. Nf6 {[%clk 0:00:10]}  b4 {[%clk 0:00:06]} 46. Bf7 {[%clk 0:00:10]}  b3 {[%clk 0:00:06]} 47. Bxb3 {[%clk 0:00:11]}  Kb4 {[%clk 0:00:07]} 48. Bc2 {[%clk 0:00:11]}  h5 {[%clk 0:00:07]} 49. Bh7 {[%clk 0:00:12]}  h4 {[%clk 0:00:07]} 50. gxh4 {[%clk 0:00:12]}  gxh4 {[%clk 0:00:08]} 51. Kh3 {[%clk 0:00:13]}  Kc3 {[%clk 0:00:09]} 52. Kxh4 {[%clk 0:00:14]}  Kd2 {[%clk 0:00:09]} 53. e4 {[%clk 0:00:15]}  Ke3 {[%clk 0:00:10]} 54. e5 {[%clk 0:00:15]}  Kf4 {[%clk 0:00:10]} 55. e6 {[%clk 0:00:16]}  Ke5 {[%clk 0:00:11]} 56. e7 {[%clk 0:00:17]}  Kxf6 {[%clk 0:00:12]} 57. e8=Q {[%clk 0:00:17]}  Kg7 {[%clk 0:00:13]} 58. Qg6+ {[%clk 0:00:17]}  Kh8 {[%clk 0:00:13]} 59. Qg8# {[%clk 0:00:18]} 1-0


[Site "https://www.chess.com"]

[Event "Titled Tuesday Blitz June 27 Late 2023"]
[White "Andersson, Bjorn 1971"]
[Black "Adewumi, Tanitoluwa"]
[WhiteFideId "1702114"]
[BlackFideId "30966396"]
[WhiteElo "2344"]
[BlackElo "2591"]
[Result "0-1"]
[Round "9"]
[TimeControl "180+2"]
[Date "2023.06.27"]
[WhiteClock "0:00:10"]
[BlackClock "0:01:01"]
[Board "88"]

1. e4 {[%clk 0:03:00]}  c5 {[%clk 0:02:59]} 2. Nf3 {[%clk 0:03:00]}  e6 {[%clk 0:02:59]} 3. d4 {[%clk 0:03:01]}  cxd4 {[%clk 0:02:55]} 4. Nxd4 {[%clk 0:03:02]}  Nc6 {[%clk 0:02:55]} 5. Nc3 {[%clk 0:03:01]}  Qc7 {[%clk 0:02:51]} 6. Nb3 {[%clk 0:02:57]}  a6 {[%clk 0:02:48]} 7. a4 {[%clk 0:02:56]}  Nf6 {[%clk 0:02:48]} 8. Be2 {[%clk 0:02:56]}  Bb4 {[%clk 0:02:48]} 9. Bf3 {[%clk 0:02:51]}  Ne5 {[%clk 0:02:47]} 10. Bd2 {[%clk 0:02:49]}  Nc4 {[%clk 0:02:45]} 11. Bc1 {[%clk 0:02:44]}  Nxb2 {[%clk 0:02:41]} 12. Bxb2 {[%clk 0:02:42]}  Bxc3+ {[%clk 0:02:41]} 13. Bxc3 {[%clk 0:02:42]}  Qxc3+ {[%clk 0:02:42]} 14. Qd2 {[%clk 0:02:42]}  Qc7 {[%clk 0:02:38]} 15. O-O {[%clk 0:02:41]}  O-O {[%clk 0:02:39]} 16. Rae1 {[%clk 0:02:38]}  d6 {[%clk 0:02:37]} 17. Bd1 {[%clk 0:02:34]}  Bd7 {[%clk 0:02:33]} 18. a5 {[%clk 0:02:31]}  Bb5 {[%clk 0:02:23]} 19. f4 {[%clk 0:02:20]}  Bxf1 {[%clk 0:02:23]} 20. Rxf1 {[%clk 0:02:20]}  Nxe4 {[%clk 0:02:22]} 21. Qe3 {[%clk 0:02:19]}  Nc5 {[%clk 0:02:21]} 22. Nd4 {[%clk 0:02:18]}  Qxa5 {[%clk 0:02:19]} 23. f5 {[%clk 0:02:10]}  exf5 {[%clk 0:02:03]} 24. Nxf5 {[%clk 0:02:07]}  Ne6 {[%clk 0:02:03]} 25. Kh1 {[%clk 0:01:49]}  Qe5 {[%clk 0:02:02]} 26. Qd2 {[%clk 0:01:40]}  Rad8 {[%clk 0:01:55]} 27. Bg4 {[%clk 0:01:22]}  d5 {[%clk 0:01:37]} 28. Re1 {[%clk 0:01:14]}  Qf6 {[%clk 0:01:28]} 29. Rf1 {[%clk 0:01:08]}  Qg5 {[%clk 0:01:25]} 30. Qe2 {[%clk 0:01:04]}  Nf4 {[%clk 0:01:20]} 31. Qf3 {[%clk 0:01:03]}  Ng6 {[%clk 0:01:19]} 32. g3 {[%clk 0:01:00]}  Ne5 {[%clk 0:01:18]} 33. Qc3 {[%clk 0:00:22]}  Nxg4 {[%clk 0:01:10]} 34. h4 {[%clk 0:00:22]}  Qf6 {[%clk 0:01:10]} 35. Qc7 {[%clk 0:00:21]}  Qe5 {[%clk 0:01:04]} 36. Qxb7 {[%clk 0:00:10]}  Qe2 {[%clk 0:01:01]} 0-1


[Site "https://www.chess.com"]

[Event "Titled Tuesday Blitz June 27 Late 2023"]
[White "Roman, Rodrigo"]
[Black "Ai, Evan"]
[WhiteFideId "3701220"]
[BlackFideId "2094770"]
[WhiteElo "2334"]
[BlackElo "2424"]
[Result "0-1"]
[Round "9"]
[TimeControl "180+2"]
[Date "2023.06.27"]
[WhiteClock "0:00:11"]
[BlackClock "0:00:31"]
[Board "91"]

1. e4 {[%clk 0:03:00]}  e5 {[%clk 0:02:59]} 2. Nf3 {[%clk 0:02:59]}  Nc6 {[%clk 0:02:59]} 3. Bc4 {[%clk 0:02:59]}  Nf6 {[%clk 0:02:59]} 4. Ng5 {[%clk 0:02:57]}  d5 {[%clk 0:02:59]} 5. exd5 {[%clk 0:02:57]}  Na5 {[%clk 0:03:00]} 6. Bb5+ {[%clk 0:02:58]}  c6 {[%clk 0:03:00]} 7. dxc6 {[%clk 0:02:58]}  bxc6 {[%clk 0:03:01]} 8. Bd3 {[%clk 0:02:58]}  h6 {[%clk 0:03:01]} 9. Ne4 {[%clk 0:02:47]}  Nd5 {[%clk 0:03:00]} 10. O-O {[%clk 0:02:42]}  Be7 {[%clk 0:03:00]} 11. Ng3 {[%clk 0:02:42]}  O-O {[%clk 0:02:54]} 12. Bf5 {[%clk 0:02:42]}  g6 {[%clk 0:02:45]} 13. Bxc8 {[%clk 0:02:42]}  Rxc8 {[%clk 0:02:44]} 14. d4 {[%clk 0:02:40]}  exd4 {[%clk 0:02:42]} 15. Qxd4 {[%clk 0:02:26]}  Bf6 {[%clk 0:02:42]} 16. Qd3 {[%clk 0:02:21]}  h5 {[%clk 0:02:22]} 17. Rd1 {[%clk 0:02:16]}  Nb4 {[%clk 0:02:21]} 18. Qf3 {[%clk 0:01:40]}  Qe7 {[%clk 0:02:12]} 19. Na3 {[%clk 0:01:36]}  Rcd8 {[%clk 0:02:09]} 20. Bh6 {[%clk 0:01:30]}  Rxd1+ {[%clk 0:01:40]} 21. Rxd1 {[%clk 0:01:28]}  Rd8 {[%clk 0:01:41]} 22. c3 {[%clk 0:01:27]}  Rxd1+ {[%clk 0:01:30]} 23. Qxd1 {[%clk 0:01:25]}  Nxa2 {[%clk 0:01:30]} 24. Be3 {[%clk 0:01:19]}  Nxc3 {[%clk 0:01:28]} 25. bxc3 {[%clk 0:01:12]}  Qxa3 {[%clk 0:01:28]} 26. Bd4 {[%clk 0:01:07]}  Bxd4 {[%clk 0:01:17]} 27. Qxd4 {[%clk 0:01:04]}  Nb3 {[%clk 0:01:10]} 28. Qd8+ {[%clk 0:00:59]}  Kh7 {[%clk 0:01:09]} 29. Qf6 {[%clk 0:00:57]}  Qc1+ {[%clk 0:00:59]} 30. Nf1 {[%clk 0:00:57]}  Kg8 {[%clk 0:00:59]} 31. g3 {[%clk 0:00:50]}  a5 {[%clk 0:00:52]} 32. Kg2 {[%clk 0:00:48]}  c5 {[%clk 0:00:47]} 33. Ne3 {[%clk 0:00:46]}  Qd2 {[%clk 0:00:43]} 34. h4 {[%clk 0:00:26]}  a4 {[%clk 0:00:43]} 35. Qa6 {[%clk 0:00:20]}  Nc1 {[%clk 0:00:32]} 36. Qa8+ {[%clk 0:00:18]}  Kg7 {[%clk 0:00:30]} 37. Qxa4 {[%clk 0:00:18]}  Nd3 {[%clk 0:00:30]} 38. Qc2 {[%clk 0:00:15]}  Ne1+ {[%clk 0:00:30]} 39. Kh2 {[%clk 0:00:11]}  Nxc2 {[%clk 0:00:31]} 0-1


[Site "https://www.chess.com"]

[Event "Titled Tuesday Blitz June 27 Late 2023"]
[White "Haitin, Ilja"]
[Black "Kornyukov, Alexey"]
[WhiteFideId "4501764"]
[BlackFideId "4150457"]
[WhiteElo "2385"]
[BlackElo "2243"]
[Result "0-1"]
[Round "9"]
[TimeControl "180+2"]
[Date "2023.06.27"]
[WhiteClock "0:00:03"]
[BlackClock "0:00:07"]
[Board "95"]

1. d4 {[%clk 0:03:00]}  d5 {[%clk 0:02:53]} 2. c4 {[%clk 0:02:58]}  e6 {[%clk 0:02:53]} 3. Nc3 {[%clk 0:02:58]}  c6 {[%clk 0:02:53]} 4. Nf3 {[%clk 0:02:52]}  dxc4 {[%clk 0:02:51]} 5. e4 {[%clk 0:02:46]}  b5 {[%clk 0:02:49]} 6. Be2 {[%clk 0:02:44]}  Bb7 {[%clk 0:02:47]} 7. O-O {[%clk 0:02:43]}  Nf6 {[%clk 0:02:39]} 8. e5 {[%clk 0:02:42]}  Nd5 {[%clk 0:02:19]} 9. Ne4 {[%clk 0:02:41]}  h6 {[%clk 0:02:13]} 10. a4 {[%clk 0:02:39]}  a6 {[%clk 0:02:07]} 11. b3 {[%clk 0:02:39]}  c3 {[%clk 0:02:00]} 12. axb5 {[%clk 0:02:35]}  cxb5 {[%clk 0:01:56]} 13. b4 {[%clk 0:02:11]}  Bxb4 {[%clk 0:01:51]} 14. Qb3 {[%clk 0:02:10]}  O-O {[%clk 0:01:47]} 15. Bd3 {[%clk 0:01:28]}  Nc6 {[%clk 0:01:45]} 16. Bb1 {[%clk 0:01:26]}  a5 {[%clk 0:00:52]} 17. Qc2 {[%clk 0:01:20]}  f5 {[%clk 0:00:27]} 18. exf6 {[%clk 0:01:18]}  Nxf6 {[%clk 0:00:26]} 19. Nxf6+ {[%clk 0:00:24]}  Qxf6 {[%clk 0:00:27]} 20. Qh7+ {[%clk 0:00:24]}  Kf7 {[%clk 0:00:27]} 21. d5 {[%clk 0:00:17]}  exd5 {[%clk 0:00:17]} 22. Ba2 {[%clk 0:00:18]}  Rad8 {[%clk 0:00:15]} 23. Be3 {[%clk 0:00:16]}  Ne5 {[%clk 0:00:12]} 24. Nxe5+ {[%clk 0:00:15]}  Qxe5 {[%clk 0:00:12]} 25. Qd3 {[%clk 0:00:15]}  Bc6 {[%clk 0:00:09]} 26. Rfe1 {[%clk 0:00:14]}  Qf6 {[%clk 0:00:06]} 27. Bd4 {[%clk 0:00:14]}  Qd6 {[%clk 0:00:04]} 28. Rac1 {[%clk 0:00:13]}  Kg8 {[%clk 0:00:04]} 29. Qh3 {[%clk 0:00:11]}  Kh8 {[%clk 0:00:02]} 30. Re3 {[%clk 0:00:10]}  Qf4 {[%clk 0:00:02]} 31. Rf1 {[%clk 0:00:09]}  Qxd4 {[%clk 0:00:02]} 32. Rg3 {[%clk 0:00:08]}  Qf6 {[%clk 0:00:02]} 33. Bb1 {[%clk 0:00:07]}  d4 {[%clk 0:00:02]} 34. Bd3 {[%clk 0:00:07]}  Bd5 {[%clk 0:00:02]} 35. Rg6 {[%clk 0:00:07]}  Qf7 {[%clk 0:00:01]} 36. Rxh6+ {[%clk 0:00:06]}  gxh6 {[%clk 0:00:02]} 37. Qxh6+ {[%clk 0:00:07]}  Kg8 {[%clk 0:00:03]} 38. Qg5+ {[%clk 0:00:06]}  Qg7 {[%clk 0:00:04]} 39. Qh5 {[%clk 0:00:05]}  Rf6 {[%clk 0:00:04]} 40. Re1 {[%clk 0:00:03]}  Bc4 {[%clk 0:00:04]} 41. Re8+ {[%clk 0:00:03]}  Rxe8 {[%clk 0:00:04]} 42. Qxe8+ {[%clk 0:00:04]}  Rf8 {[%clk 0:00:04]} 43. Bxc4+ {[%clk 0:00:03]}  bxc4 {[%clk 0:00:04]} 44. Qe6+ {[%clk 0:00:04]}  Qf7 {[%clk 0:00:04]} 45. Qg4+ {[%clk 0:00:04]}  Qg7 {[%clk 0:00:05]} 46. Qe6+ {[%clk 0:00:04]}  Rf7 {[%clk 0:00:05]} 47. Qc8+ {[%clk 0:00:04]}  Bf8 {[%clk 0:00:06]} 48. h4 {[%clk 0:00:03]}  c2 {[%clk 0:00:05]} 49. h5 {[%clk 0:00:03]}  c1=Q+ {[%clk 0:00:05]} 50. Kh2 {[%clk 0:00:03]}  Qf4+ {[%clk 0:00:06]} 51. g3 {[%clk 0:00:02]}  Qxf2+ {[%clk 0:00:06]} 52. Kh3 {[%clk 0:00:03]}  Qfxg3# {[%clk 0:00:07]} 0-1


[Site "https://www.chess.com"]

[Event "Titled Tuesday Blitz June 27 Late 2023"]
[White "BenchGM"]
[Black "zano2023"]
[WhiteElo "2378"]
[BlackElo "2175"]
[Result "0-1"]
[Round "9"]
[TimeControl "180+2"]
[Date "2023.06.27"]
[WhiteClock "0:00:00"]
[BlackClock "0:01:17"]
[Board "96"]

1. e4 {[%clk 0:03:00]}  e5 {[%clk 0:02:59]} 2. Nf3 {[%clk 0:03:00]}  d6 {[%clk 0:02:58]} 3. d4 {[%clk 0:03:00]}  f5 {[%clk 0:02:59]} 4. exf5 {[%clk 0:02:37]}  e4 {[%clk 0:02:59]} 5. Ng5 {[%clk 0:02:32]}  Bxf5 {[%clk 0:02:59]} 6. d5 {[%clk 0:02:10]}  Nf6 {[%clk 0:02:39]} 7. Nc3 {[%clk 0:02:01]}  c6 {[%clk 0:02:38]} 8. Bf4 {[%clk 0:01:55]}  cxd5 {[%clk 0:02:35]} 9. Nxd5 {[%clk 0:01:32]}  h6 {[%clk 0:02:25]} 10. Nxf6+ {[%clk 0:01:21]}  Qxf6 {[%clk 0:02:25]} 11. Bb5+ {[%clk 0:01:15]}  Nc6 {[%clk 0:02:24]} 12. Bxc6+ {[%clk 0:01:14]}  bxc6 {[%clk 0:02:23]} 13. Nh3 {[%clk 0:01:00]}  Bxh3 {[%clk 0:02:22]} 14. gxh3 {[%clk 0:00:55]}  Qxf4 {[%clk 0:02:22]} 15. Qh5+ {[%clk 0:00:55]}  Qf7 {[%clk 0:02:19]} 16. Qg4 {[%clk 0:00:53]}  d5 {[%clk 0:02:10]} 17. O-O-O {[%clk 0:00:46]}  Be7 {[%clk 0:02:04]} 18. h4 {[%clk 0:00:29]}  O-O {[%clk 0:02:03]} 19. Kb1 {[%clk 0:00:27]}  Qf5 {[%clk 0:02:02]} 20. Qg3 {[%clk 0:00:24]}  Qf4 {[%clk 0:01:57]} 21. Qg6 {[%clk 0:00:22]}  Rf6 {[%clk 0:01:55]} 22. Qg2 {[%clk 0:00:21]}  Qxf2 {[%clk 0:01:50]} 23. Qg4 {[%clk 0:00:21]}  Qf5 {[%clk 0:01:49]} 24. Qg2 {[%clk 0:00:19]}  Rg6 {[%clk 0:01:46]} 25. Qe2 {[%clk 0:00:17]}  Qf3 {[%clk 0:01:44]} 26. Qa6 {[%clk 0:00:17]}  Bc5 {[%clk 0:01:37]} 27. Qb7 {[%clk 0:00:16]}  Rf8 {[%clk 0:01:36]} 28. Qd7 {[%clk 0:00:10]}  Rgf6 {[%clk 0:01:33]} 29. a3 {[%clk 0:00:08]}  Qf5 {[%clk 0:01:32]} 30. Qb7 {[%clk 0:00:07]}  Qe6 {[%clk 0:01:29]} 31. Qa6 {[%clk 0:00:07]}  Bb6 {[%clk 0:01:29]} 32. Qe2 {[%clk 0:00:06]}  Rf2 {[%clk 0:01:27]} 33. Qh5 {[%clk 0:00:06]}  e3 {[%clk 0:01:26]} 34. Rhg1 {[%clk 0:00:05]}  e2 {[%clk 0:01:18]} 35. Rde1 {[%clk 0:00:00]}  Rf1 {[%clk 0:01:17]} 0-1


[Site "https://www.chess.com"]

[Event "Titled Tuesday Blitz June 27 Late 2023"]
[White "Campos, Maria Jose"]
[Black "Sanchez, Robert"]
[WhiteFideId "146803"]
[BlackFideId "2034360"]
[WhiteElo "2374"]
[BlackElo "2129"]
[Result "1-0"]
[Round "9"]
[TimeControl "180+2"]
[Date "2023.06.27"]
[WhiteClock "0:02:38"]
[BlackClock "0:01:47"]
[Board "97"]

1. c4 {[%clk 0:02:57]}  Nf6 {[%clk 0:02:58]} 2. g3 {[%clk 0:02:57]}  g6 {[%clk 0:02:58]} 3. Bg2 {[%clk 0:02:58]}  Bg7 {[%clk 0:02:59]} 4. Nc3 {[%clk 0:02:58]}  d6 {[%clk 0:02:59]} 5. d3 {[%clk 0:02:58]}  O-O {[%clk 0:03:00]} 6. e4 {[%clk 0:02:58]}  e5 {[%clk 0:02:59]} 7. Nge2 {[%clk 0:02:59]}  Nc6 {[%clk 0:03:00]} 8. O-O {[%clk 0:02:59]}  Bd7 {[%clk 0:03:01]} 9. h3 {[%clk 0:02:59]}  Qc8 {[%clk 0:03:01]} 10. Kh2 {[%clk 0:03:00]}  h6 {[%clk 0:03:01]} 11. Be3 {[%clk 0:03:00]}  Kh7 {[%clk 0:03:00]} 12. Qd2 {[%clk 0:03:00]}  Ng8 {[%clk 0:03:00]} 13. Nd5 {[%clk 0:03:00]}  Nge7 {[%clk 0:02:59]} 14. b4 {[%clk 0:03:00]}  Nxd5 {[%clk 0:02:54]} 15. exd5 {[%clk 0:03:00]}  Ne7 {[%clk 0:02:52]} 16. c5 {[%clk 0:02:55]}  f5 {[%clk 0:02:50]} 17. Rac1 {[%clk 0:02:45]}  Qd8 {[%clk 0:02:50]} 18. f4 {[%clk 0:02:45]}  Bb5 {[%clk 0:02:40]} 19. Rfe1 {[%clk 0:02:43]}  dxc5 {[%clk 0:02:30]} 20. Bxc5 {[%clk 0:02:42]}  Re8 {[%clk 0:02:13]} 21. Nc3 {[%clk 0:02:41]}  Qd7 {[%clk 0:01:52]} 22. fxe5 {[%clk 0:02:38]}  Nxd5 {[%clk 0:01:47]} 1-0


[Site "https://www.chess.com"]

[Event "Titled Tuesday Blitz June 27 Late 2023"]
[White "Toniutti, Ezio"]
[Black "Inepton_Fermion"]
[WhiteFideId "113034"]
[WhiteElo "2457"]
[BlackElo "2361"]
[Result "1-0"]
[Round "9"]
[TimeControl "180+2"]
[Date "2023.06.27"]
[WhiteClock "0:00:07"]
[BlackClock "0:00:07"]
[Board "98"]

1. d4 {[%clk 0:03:00]}  g6 {[%clk 0:02:56]} 2. c4 {[%clk 0:03:01]}  Bg7 {[%clk 0:02:56]} 3. Nc3 {[%clk 0:03:00]}  c5 {[%clk 0:02:57]} 4. d5 {[%clk 0:02:59]}  Bxc3+ {[%clk 0:02:58]} 5. bxc3 {[%clk 0:02:59]}  e5 {[%clk 0:02:59]} 6. e4 {[%clk 0:02:56]}  d6 {[%clk 0:02:58]} 7. h4 {[%clk 0:02:56]}  h5 {[%clk 0:02:44]} 8. Nf3 {[%clk 0:02:52]}  Bg4 {[%clk 0:02:36]} 9. Qb3 {[%clk 0:02:50]}  Bxf3 {[%clk 0:02:26]} 10. Qxb7 {[%clk 0:02:33]}  Nd7 {[%clk 0:02:14]} 11. gxf3 {[%clk 0:02:31]}  Rb8 {[%clk 0:01:52]} 12. Qc6 {[%clk 0:02:29]}  Qa5 {[%clk 0:01:51]} 13. Bh3 {[%clk 0:01:43]}  Qxc3+ {[%clk 0:01:22]} 14. Kf1 {[%clk 0:01:37]}  Nf6 {[%clk 0:01:17]} 15. Kg2 {[%clk 0:01:11]}  O-O {[%clk 0:01:06]} 16. Bg5 {[%clk 0:01:08]}  Rb6 {[%clk 0:00:32]} 17. Qc7 {[%clk 0:01:02]}  Rfb8 {[%clk 0:00:21]} 18. Bxd7 {[%clk 0:00:51]}  R6b7 {[%clk 0:00:21]} 19. Qxd6 {[%clk 0:00:50]}  Nxd7 {[%clk 0:00:21]} 20. Rae1 {[%clk 0:00:28]}  Qxc4 {[%clk 0:00:18]} 21. Rc1 {[%clk 0:00:14]}  Qxa2 {[%clk 0:00:17]} 22. Be3 {[%clk 0:00:14]}  c4 {[%clk 0:00:15]} 23. Ra1 {[%clk 0:00:11]}  Qb2 {[%clk 0:00:12]} 24. Rhc1 {[%clk 0:00:11]}  c3 {[%clk 0:00:11]} 25. Ra6 {[%clk 0:00:09]}  Nb6 {[%clk 0:00:08]} 26. Qc6 {[%clk 0:00:07]}  Nd7 {[%clk 0:00:03]} 27. Qxc3 {[%clk 0:00:06]}  Qxc3 {[%clk 0:00:03]} 28. Rxc3 {[%clk 0:00:07]}  Rb2 {[%clk 0:00:03]} 29. Rxa7 {[%clk 0:00:06]}  Nb6 {[%clk 0:00:02]} 30. Rcc7 {[%clk 0:00:05]}  Rf8 {[%clk 0:00:01]} 31. Rcb7 {[%clk 0:00:05]}  Nc4 {[%clk 0:00:01]} 32. Rxb2 {[%clk 0:00:05]}  Nxb2 {[%clk 0:00:02]} 33. Rb7 {[%clk 0:00:06]}  Nd3 {[%clk 0:00:02]} 34. Rb6 {[%clk 0:00:06]}  Rd8 {[%clk 0:00:02]} 35. Rc6 {[%clk 0:00:06]}  Nf4+ {[%clk 0:00:02]} 36. Bxf4 {[%clk 0:00:06]}  exf4 {[%clk 0:00:02]} 37. Rf6 {[%clk 0:00:06]}  Kg7 {[%clk 0:00:03]} 38. Rxf4 {[%clk 0:00:06]}  f6 {[%clk 0:00:03]} 39. Kg3 {[%clk 0:00:05]}  Kf7 {[%clk 0:00:03]} 40. e5 {[%clk 0:00:05]}  Rxd5 {[%clk 0:00:03]} 41. Rxf6+ {[%clk 0:00:05]}  Kg7 {[%clk 0:00:03]} 42. f4 {[%clk 0:00:05]}  Rd3+ {[%clk 0:00:03]} 43. f3 {[%clk 0:00:06]}  Rd2 {[%clk 0:00:03]} 44. Rd6 {[%clk 0:00:05]}  Re2 {[%clk 0:00:02]} 45. f5 {[%clk 0:00:05]}  gxf5 {[%clk 0:00:02]} 46. Kf4 {[%clk 0:00:05]}  Rh2 {[%clk 0:00:02]} 47. Kg5 {[%clk 0:00:03]}  Rg2+ {[%clk 0:00:02]} 48. Kxf5 {[%clk 0:00:03]}  Rh2 {[%clk 0:00:02]} 49. f4 {[%clk 0:00:03]}  Rxh4 {[%clk 0:00:02]} 50. Rd7+ {[%clk 0:00:03]}  Kf8 {[%clk 0:00:02]} 51. e6 {[%clk 0:00:04]}  Rh1 {[%clk 0:00:02]} 52. Ra7 {[%clk 0:00:04]}  Rc1 {[%clk 0:00:01]} 53. Kf6 {[%clk 0:00:04]}  Rc8 {[%clk 0:00:01]} 54. f5 {[%clk 0:00:04]}  Rb8 {[%clk 0:00:01]} 55. Rh7 {[%clk 0:00:04]}  Kg8 {[%clk 0:00:01]} 56. Rxh5 {[%clk 0:00:04]}  Rf8+ {[%clk 0:00:01]} 57. Kg6 {[%clk 0:00:04]}  Ra8 {[%clk 0:00:02]} 58. f6 {[%clk 0:00:04]}  Ra1 {[%clk 0:00:02]} 59. f7+ {[%clk 0:00:04]}  Kf8 {[%clk 0:00:03]} 60. Rh8+ {[%clk 0:00:05]}  Ke7 {[%clk 0:00:04]} 61. f8=Q+ {[%clk 0:00:05]}  Kxe6 {[%clk 0:00:04]} 62. Qf7+ {[%clk 0:00:06]}  Ke5 {[%clk 0:00:04]} 63. Re8+ {[%clk 0:00:06]}  Kd4 {[%clk 0:00:04]} 64. Qf6+ {[%clk 0:00:06]}  Kd3 {[%clk 0:00:04]} 65. Qxa1 {[%clk 0:00:07]}  Kc2 {[%clk 0:00:05]} 66. Rc8+ {[%clk 0:00:07]}  Kb3 {[%clk 0:00:06]} 67. Qb1+ {[%clk 0:00:07]}  Ka4 {[%clk 0:00:07]} 68. Ra8# {[%clk 0:00:07]} 1-0


[Site "https://www.chess.com"]

[Event "Titled Tuesday Blitz June 27 Late 2023"]
[White "Quirke, Jeffrey"]
[Black "MAHanif"]
[WhiteFideId "2013029"]
[WhiteElo "2244"]
[BlackElo "2322"]
[Result "0-1"]
[Round "9"]
[TimeControl "180+2"]
[Date "2023.06.27"]
[WhiteClock "0:00:26"]
[BlackClock "0:01:29"]
[Board "102"]

1. e4 {[%clk 0:02:55]}  e5 {[%clk 0:02:57]} 2. Nf3 {[%clk 0:02:54]}  Nc6 {[%clk 0:02:57]} 3. Bb5 {[%clk 0:02:54]}  Bc5 {[%clk 0:02:56]} 4. c3 {[%clk 0:02:44]}  Nge7 {[%clk 0:02:53]} 5. O-O {[%clk 0:02:41]}  a6 {[%clk 0:02:52]} 6. Ba4 {[%clk 0:02:41]}  b5 {[%clk 0:02:51]} 7. Bc2 {[%clk 0:02:40]}  O-O {[%clk 0:02:50]} 8. d4 {[%clk 0:02:39]}  exd4 {[%clk 0:02:43]} 9. cxd4 {[%clk 0:02:38]}  Bb6 {[%clk 0:02:43]} 10. Nc3 {[%clk 0:02:30]}  d5 {[%clk 0:02:42]} 11. e5 {[%clk 0:02:30]}  Bg4 {[%clk 0:02:41]} 12. Be3 {[%clk 0:02:28]}  Bxf3 {[%clk 0:02:40]} 13. Qxf3 {[%clk 0:02:13]}  Bxd4 {[%clk 0:02:35]} 14. e6 {[%clk 0:02:00]}  fxe6 {[%clk 0:02:24]} 15. Qh3 {[%clk 0:02:00]}  Nf5 {[%clk 0:02:15]} 16. g4 {[%clk 0:01:53]}  Bxe3 {[%clk 0:02:09]} 17. fxe3 {[%clk 0:01:52]}  Qg5 {[%clk 0:02:06]} 18. Rae1 {[%clk 0:01:22]}  Nh6 {[%clk 0:01:56]} 19. Bd1 {[%clk 0:00:56]}  Ne5 {[%clk 0:01:49]} 20. Qg3 {[%clk 0:00:52]}  Rxf1+ {[%clk 0:01:45]} 21. Rxf1 {[%clk 0:00:52]}  Nexg4 {[%clk 0:01:40]} 22. Kh1 {[%clk 0:00:33]}  Qxe3 {[%clk 0:01:34]} 23. Qxc7 {[%clk 0:00:26]}  Nf2+ {[%clk 0:01:29]} 0-1


[Site "https://www.chess.com"]